bitfinex-derivatives/quotes_SOLF0:USTF0_20250609
["timestamp","ask_amount","ask_price","bid_price","bid_amount"]
[1749443293365,10.05970947,151.2,151.19,41.75858929]
[1749443293669,10.06756314,151.2,151.19,41.75858929]
[1749443293869,10.06753307,151.2,151.19,41.75858929]
[1749443294070,5.54001779,151.2,151.19,41.75858929]
[1749443294271,10.06753312,151.2,151.19,41.75858929]
[1749443295167,10.06225642,151.2,151.19,35.14768929]
[1749443295870,10.06228129,151.2,151.19,35.14768929]
[1749443296072,10.06227308,151.2,151.19,35.14768929]
[1749443297281,10.06532821,151.2,151.19,35.14768929]
[1749443297679,5.54001779,151.2,151.19,35.14768929]
[1749443298182,10.07445815,151.2,151.19,35.14768929]
[1749443298883,5.54001779,151.2,151.19,35.14768929]
[1749443299081,10.07432153,151.2,151.19,35.14768929]
[1749443299279,10.07432148,151.2,151.19,35.14768929]
[1749443299480,10.07432149,151.2,151.19,35.14768929]
[1749443299681,10.07432154,151.2,151.19,35.14768929]
[1749443300184,10.07432154,151.2,151.19,32.4]
[1749443300579,5.54001779,151.2,151.19,32.4]
[1749443300783,10.07076851,151.2,151.19,32.4]
[1749443300985,5.54001779,151.2,151.19,32.4]
[1749443301386,10.07077751,151.2,151.19,32.4]
[1749443302290,5.54001779,151.2,151.19,32.4]
[1749443302591,10.07098792,151.2,151.19,32.4]
[1749443302784,5.54001779,151.2,151.19,32.4]
[1749443302987,10.07118856,151.2,151.19,32.4]
[1749443303684,10.07118856,151.2,151.18,6.6112]
[1749443303883,12.84105891,151.21,151.18,6.6112]
[1749443303884,10.0713532,151.19,151.18,6.6112]
[1749443304279,10.06895252,151.19,151.18,6.6112]
[1749443304485,10.06895257,151.19,151.18,6.6112]
[1749443304695,10.06895252,151.19,151.18,6.6112]
[1749443304885,10.06895252,151.19,151.18,9.35888929]
[1749443305192,10.06895252,151.19,151.18,2.74768929]
[1749443306090,5.54001779,151.19,151.18,2.74768929]
[1749443306292,10.06935821,151.19,151.18,2.74768929]
[1749443307486,5.54001779,151.19,151.18,2.74768929]
[1749443307889,10.06478995,151.19,151.18,2.74768929]
[1749443308090,5.54001779,151.19,151.18,35.14715906]
[1749443308294,10.0647527,151.19,151.18,35.14715906]
[1749443308594,5.54001779,151.19,151.18,41.75845906]
[1749443309289,0.04598338,151.21,151.2,6.6105]
[1749443309482,5.58612925,151.21,151.2,9.35704857]
[1749443309687,10.10858281,151.21,151.2,9.35704857]
[1749443310183,10.10858685,151.21,151.2,9.35704857]
[1749443311394,5.58612925,151.21,151.2,9.35704857]
[1749443311788,10.10858276,151.21,151.2,9.35704857]
[1749443312794,10.11633612,151.21,151.2,9.35704857]
[1749443312993,10.11633608,151.21,151.2,9.35704857]
[1749443313193,5.58612925,151.21,151.2,9.35704857]
[1749443313395,10.11633842,151.21,151.2,9.35704857]
[1749443313597,5.58612925,151.21,151.2,9.35704857]
[1749443313795,10.11633832,151.21,151.2,9.35704857]
[1749443314498,10.11314953,151.21,151.2,9.35704857]
[1749443314997,5.58612925,151.21,151.2,9.35704857]
[1749443315189,10.11314911,151.21,151.2,9.35704857]
[1749443315390,10.11322885,151.21,151.2,9.35704857]
[1749443316489,5.58620899,151.21,151.2,9.35704857]
[1749443316799,10.1130075,151.21,151.2,9.35704857]
[1749443317801,10.11723969,151.21,151.2,9.35704857]
[1749443318298,10.11703622,151.21,151.2,9.35704857]
[1749443318500,10.11703617,151.21,151.2,9.35704857]
[1749443318698,5.58620899,151.21,151.2,9.35704857]
[1749443318899,10.11703622,151.21,151.2,9.35704857]
[1749443319300,5.58620899,151.21,151.2,9.35704857]
[1749443319696,0.04598338,151.21,151.2,9.35704857]
[1749443320697,12.78972947,151.26,151.2,2.74654857]
[1749443320898,10.06951476,151.25,151.24,2.74654857]
[1749443321595,4.52941304,151.25,151.24,2.74654857]
[1749443321900,4.52730247,151.25,151.24,2.74654857]
[1749443322100,4.52730242,151.25,151.24,2.74654857]
[1749443322303,10.06906207,151.25,151.24,2.74654857]
[1749443322499,5.54175965,151.25,151.23,0.04780262]
[1749443322700,6.1808587,151.25,151.24,2.74654857]
[1749443322902,16.25008138,151.25,151.24,2.74654857]
[1749443323604,11.72276595,151.25,151.24,2.74654857]
[1749443323903,10.07833233,151.25,151.24,2.74654857]
[1749443325202,10.07751393,151.25,151.24,2.74654857]
[1749443326305,10.07751393,151.25,151.24,9.35524857]
[1749443327003,5.54190725,151.25,151.24,9.35524857]
[1749443327502,10.07639355,151.25,151.24,9.35524857]
[1749443327902,10.07638969,151.25,151.24,9.35524857]
[1749443328207,10.07638969,151.25,151.24,2.74654857]
[1749443328406,10.07689313,151.25,151.24,2.74654857]
[1749443328601,5.54190725,151.25,151.24,2.74654857]
[1749443328796,10.07689314,151.25,151.23,0.04780262]
[1749443328996,10.0765155,151.24,151.23,6.65700262]
[1749443329204,10.07651536,151.24,151.23,6.65700262]
[1749443329806,5.54190725,151.24,151.23,6.65700262]
[1749443330007,10.07570432,151.24,151.23,6.65700262]
[1749443330208,10.07570236,151.24,151.23,9.40355119]
[1749443330407,10.07570235,151.24,151.23,9.40355119]
[1749443330714,10.07570235,151.24,151.23,6.65700262]
[1749443330907,10.07570235,151.24,151.23,9.40355119]
[1749443332103,5.54190725,151.24,151.23,9.40355119]
[1749443332304,10.07476209,151.24,151.23,9.40355119]
[1749443332902,5.54190725,151.24,151.23,9.40355119]
[1749443333304,0.05029895,151.26,151.25,6.6083]
[1749443333608,4.58281944,151.26,151.25,9.35484857]
[1749443333809,0.05029895,151.26,151.25,9.35484857]
[1749443334007,4.58281938,151.26,151.25,9.35484857]
[1749443334208,0.05029895,151.26,151.25,9.35484857]
[1749443334605,4.58388102,151.26,151.25,9.35484857]
[1749443335110,0.05029895,151.26,151.25,9.35484857]
[1749443335305,4.58413319,151.26,151.25,9.35484857]
[1749443335803,0.05029895,151.26,151.25,9.35484857]
[1749443336202,4.58411978,151.26,151.25,9.35484857]
[1749443336399,4.58411963,151.26,151.25,9.35484857]
[1749443336807,4.58411964,151.26,151.25,9.35484857]
[1749443337006,4.58411594,151.26,151.25,9.35484857]
[1749443337308,0.05029895,151.26,151.25,9.35484857]
[1749443341315,0.05029895,151.26,151.23,0.04780262]
[1749443341514,0.05029895,151.26,151.25,2.74654857]
[1749443341701,0.05029895,151.26,151.23,0.04780262]
[1749443341906,6.16700587,151.27,151.25,2.7443899]
[1749443342102,14.9486062,151.36,151.26,35.34294526]
[1749443342305,2.74294526,151.36,151.32,2.74294526]
[1749443342510,6.604,151.35,151.32,2.74294526]
[1749443342711,2.74294526,151.36,151.32,2.74294526]
[1749443342911,6.6041,151.35,151.32,2.78585165]
[1749443343208,6.6041,151.35,151.33,2.74294526]
[1749443343509,0.05062655,151.36,151.32,0.04290639]
[1749443343510,4.54784129,151.34,151.32,0.04290639]
[1749443343705,0.05062655,151.36,151.33,2.74294526]
[1749443343910,4.54753077,151.35,151.34,2.74294526]
[1749443344113,0.05062655,151.36,151.34,2.74294526]
[1749443344308,4.54753532,151.35,151.34,2.74294526]
[1749443344509,0.05062655,151.36,151.34,2.74294526]
[1749443344510,0.05062655,151.36,151.34,9.34724526]
[1749443344713,4.54752271,151.35,151.34,9.34724526]
[1749443344915,4.5475227,151.35,151.34,9.34724526]
[1749443345111,4.54752265,151.35,151.34,9.34724526]
[1749443345308,9.99538203,151.35,151.34,6.6043]
[1749443345608,9.99537834,151.35,151.34,6.6043]
[1749443345812,5.44785938,151.35,151.34,6.6043]
[1749443346116,9.99537834,151.35,151.34,6.6043]
[1749443346714,4.54751896,151.35,151.34,6.6043]
[1749443347310,4.54751896,151.35,151.33,6.6046]
[1749443347511,0.05062655,151.36,151.33,6.6046]
[1749443347718,4.57683371,151.35,151.32,4.3274609]
[1749443348015,0.05062655,151.36,151.32,4.3274609]
[1749443348216,4.57683371,151.35,151.32,4.3274609]
[1749443348516,0.05062655,151.36,151.32,10.9326609]
[1749443349911,6.65412655,151.36,151.32,10.9326609]
[1749443354621,6.65412655,151.36,151.32,4.3274609]
[1749443355014,4.33518106,151.36,151.32,0.04290639]
[1749443355419,5.4480968,151.35,151.32,0.04290639]
[1749443355615,6.6046,151.34,151.32,0.04290639]
[1749443356423,6.6048,151.33,151.32,0.04290639]
[1749443362730,12.04862243,151.33,151.32,0.04290639]
[1749443363525,6.6048,151.33,151.32,0.04290639]
[1749443363737,12.04862243,151.33,151.32,0.04290639]
[1749443363934,6.6048,151.33,151.32,0.04290639]
[1749443364135,12.04862243,151.33,151.32,0.04290639]
[1749443364938,6.6048,151.33,151.32,0.04290639]
[1749443365139,12.04862243,151.33,151.32,0.04290639]
[1749443365535,6.6048,151.33,151.32,0.04290639]
[1749443365737,12.04862243,151.33,151.32,0.04290639]
[1749443365935,6.6048,151.33,151.32,0.04290639]
[1749443368343,12.04833644,151.33,151.32,0.04290639]
[1749443373449,16.58501243,151.33,151.32,0.04290639]
[1749443374046,12.04833644,151.33,151.32,0.04290639]
[1749443374245,16.58501243,151.33,151.32,0.04290639]
[1749443374641,12.04833644,151.33,151.32,0.04290639]
[1749443374844,16.58933893,151.33,151.32,0.04290639]
[1749443375643,299.0,151.32,151.17,2.74731262]
[1749443375843,299.0,151.32,151.3,2.74731262]
[1749443376151,9.35041262,151.37,151.31,35.06]
[1749443376345,10.10623832,151.36,151.31,35.06]
[1749443376543,10.15599379,151.35,151.32,0.05069271]
[1749443376749,5.56513268,151.34,151.32,0.05069271]
[1749443377050,0.04185462,151.35,151.32,35.11069271]
[1749443377051,5.56469484,151.33,151.32,35.11069271]
[1749443378347,0.04185462,151.35,151.32,37.85800533]
[1749443378547,10.09506678,151.34,151.32,37.85800533]
[1749443378743,5.56778484,151.33,151.32,44.46320533]
[1749443382950,0.04185462,151.35,151.34,6.6044]
[1749443383249,4.60098444,151.35,151.34,6.6044]
[1749443383444,10.18199112,151.35,151.34,6.6044]
[1749443383651,10.18163729,151.35,151.34,6.6044]
[1749443384250,10.18555198,151.35,151.34,6.6044]
[1749443384453,5.62250747,151.35,151.34,6.6044]
[1749443385355,5.62250747,151.35,151.34,9.34645381]
[1749443389054,0.04185462,151.35,151.34,9.34645381]
[1749443389554,5.462e-05,151.35,151.34,9.34645381]
[1749443391953,5.462e-05,151.35,151.34,389.80645381]
[1749443392354,2.1784,151.44,151.34,389.80645381]
[1749443392355,12.92124951,151.42,151.4,6.6014]
[1749443392652,10.19283343,151.41,151.4,41.6614]
[1749443392854,10.19282873,151.41,151.4,41.6614]
[1749443393152,5.59575462,151.41,151.4,41.6614]
[1749443393355,10.19282681,151.41,151.4,41.6614]
[1749443393753,10.19223414,151.41,151.4,41.6614]
[1749443395054,5.59575462,151.41,151.4,41.6614]
[1749443395250,5.59575462,151.41,151.4,35.06]
[1749443395853,10.19474889,151.41,151.4,35.06]
[1749443396051,12.9368027,151.41,151.4,41.6617]
[1749443396452,8.33780843,151.41,151.4,41.6617]
[1749443396752,12.93680273,151.41,151.4,41.6617]
[1749443396962,8.33780843,151.41,151.4,41.6617]
[1749443397257,12.934879,151.41,151.4,41.6617]
[1749443398252,12.94216667,151.41,151.4,41.6617]
[1749443398451,12.94216604,151.41,151.4,41.6617]
[1749443398947,12.94115387,151.41,151.4,41.6617]
[1749443399157,8.3358847,151.41,151.4,41.6617]
[1749443399358,12.94115387,151.41,151.4,41.6617]
[1749443400154,10.19910006,151.41,151.4,41.6617]
[1749443400452,5.59383089,151.41,151.4,41.6617]
[1749443400753,10.20075277,151.41,151.4,41.6617]
[1749443401463,10.20075277,151.41,151.4,35.06]
[1749443401957,10.20075214,151.41,151.4,35.06]
[1749443402258,5.59383089,151.41,151.4,35.06]
[1749443402656,10.20054684,151.41,151.4,35.06]
[1749443403759,12.94260065,151.41,151.4,35.06]
[1749443403964,12.94018942,151.41,151.4,35.06]
[1749443404162,5.59383089,151.41,151.4,35.06]
[1749443404352,10.19812348,151.41,151.4,35.06]
[1749443404558,10.19823834,151.41,151.4,35.06]
[1749443405055,10.19823834,151.41,151.4,41.6617]
[1749443405255,5.59383089,151.41,151.4,41.6617]
[1749443405855,5.59383089,151.41,151.4,44.40375381]
[1749443406052,0.04862764,151.42,151.4,44.40375381]
[1749443406053,0.04862764,151.42,151.41,6.6013]
[1749443406256,5.63505252,151.42,151.41,9.34335381]
[1749443406460,5.63414518,151.42,151.41,9.34335381]
[1749443407366,0.04862764,151.42,151.41,9.34335381]
[1749443407763,5.6339656,151.42,151.41,2.74205381]
[1749443408966,0.04862764,151.42,151.41,2.74205381]
[1749443409266,5.63352507,151.42,151.41,2.74205381]
[1749443409462,8.37557888,151.42,151.24,13.217]
[1749443409659,2.74205381,151.28,151.21,34.8]
[1749443409861,6.14876287,151.37,151.21,34.8]
[1749443410060,6.14876287,151.44,151.22,135.8851]
[1749443410265,8.8909938,151.42,151.22,135.8851]
[1749443410460,2.74136234,151.39,151.34,9.34556234]
[1749443410664,10.23091467,151.38,151.35,36.52711748]
[1749443410864,10.18901482,151.37,151.36,36.48]
[1749443411367,10.18901721,151.37,151.36,36.48]
[1749443411756,5.58549607,151.37,151.36,36.48]
[1749443412869,5.58549607,151.37,151.36,43.0835]
[1749443413464,5.58549607,151.37,151.36,36.48]
[1749443416169,16.78374887,151.37,151.36,36.48]
[1749443416369,16.78381083,151.37,151.36,36.48]
[1749443416571,16.78379762,151.37,151.36,36.48]
[1749443417465,22.93256049,151.37,151.36,36.48]
[1749443417767,18.33725894,151.37,151.36,36.48]
[1749443417961,22.93244141,151.37,151.36,36.48]
[1749443418967,22.93509804,151.37,151.36,36.48]
[1749443419364,22.9351027,151.37,151.36,36.48]
[1749443419573,16.786341,151.37,151.36,36.48]
[1749443419765,12.18849607,151.37,151.36,36.48]
[1749443419968,16.786345,151.37,151.36,36.48]
[1749443420169,6.6035,151.36,151.35,0.04711748]
[1749443420470,22.94548884,151.36,151.35,0.04711748]
[1749443421263,22.94417072,151.36,151.35,0.04711748]
[1749443422166,10.18202688,151.36,151.35,0.04711748]
[1749443422771,12.18899607,151.36,151.35,0.04711748]
[1749443423271,16.77495613,151.36,151.35,0.04711748]
[1749443423667,10.17145613,151.36,151.35,0.04711748]
[1749443424569,5.58549607,151.36,151.35,0.04711748]
[1749443424769,10.17147959,151.36,151.35,0.04711748]
[1749443425174,5.58549607,151.36,151.35,0.04711748]
[1749443425671,10.17184354,151.36,151.35,0.04711748]
[1749443426275,5.58549607,151.36,151.35,0.04711748]
[1749443426470,10.17184354,151.36,151.35,0.04711748]
[1749443426669,5.58549607,151.36,151.35,0.04711748]
[1749443427473,10.1763992,151.36,151.35,0.04711748]
[1749443427975,5.58549607,151.36,151.35,0.04711748]
[1749443428174,10.17748132,151.36,151.35,0.04711748]
[1749443428474,10.17775383,151.36,151.35,0.04711748]
[1749443428772,5.58549607,151.36,151.35,0.04711748]
[1749443428967,10.17776031,151.36,151.35,0.04711748]
[1749443430276,5.58549607,151.36,151.35,0.04711748]
[1749443430470,10.17762207,151.36,151.35,0.04711748]
[1749443431775,10.17784894,151.36,151.35,0.04711748]
[1749443431976,10.17720575,151.36,151.35,0.04711748]
[1749443432179,10.18175346,151.36,151.35,0.04711748]
[1749443432678,10.18175347,151.36,151.35,0.04711748]
[1749443433275,10.18175347,151.36,151.35,2.78884697]
[1749443433876,10.18149123,151.36,151.35,2.78884697]
[1749443434078,10.18149141,151.36,151.35,2.78884697]
[1749443434378,10.18149144,151.36,151.35,2.78884697]
[1749443435781,5.58549607,151.36,151.35,2.78884697]
[1749443435977,10.18123971,151.36,151.35,2.78884697]
[1749443437180,10.18076245,151.36,151.35,2.78884697]
[1749443437380,5.58549607,151.36,151.35,2.78884697]
[1749443437583,10.1762201,151.36,151.35,2.78884697]
[1749443438176,19.52144959,151.36,151.35,0.04711748]
[1749443438685,27.73156836,151.36,151.35,0.04711748]
[1749443438975,23.14154182,151.36,151.35,0.04711748]
[1749443439174,23.14154182,151.36,151.3,416.86]
[1749443439175,6.6053,151.32,151.3,419.60172949]
[1749443439380,5.58549607,151.31,151.3,419.60172949]
[1749443439781,5.58549607,151.31,151.3,426.20782949]
[1749443439981,10.17563565,151.31,151.3,36.5]
[1749443440179,19.07841885,151.31,151.3,36.5]
[1749443440382,19.07841885,151.31,151.29,0.04274535]
[1749443440677,12.91736514,151.3,151.29,0.04274535]
[1749443440978,19.52346514,151.3,151.29,0.04274535]
[1749443441284,16.78177882,151.3,151.29,0.04274535]
[1749443441982,12.19159607,151.3,151.29,0.04274535]
[1749443442481,16.75856032,151.3,151.29,0.04274535]
[1749443442782,16.75847907,151.3,151.29,0.04274535]
[1749443443677,12.19159607,151.3,151.29,0.04274535]
[1749443444179,10.14310638,151.3,151.29,0.04274535]
[1749443444386,10.1431064,151.3,151.29,0.04274535]
[1749443445081,10.14319682,151.3,151.29,0.04274535]
[1749443445481,5.58549607,151.3,151.29,6.64924535]
[1749443447586,5.58549607,151.3,151.29,0.04274535]
[1749443448888,12.19159607,151.3,151.29,0.04274535]
[1749443451890,16.7332584,151.3,151.29,0.04274535]
[1749443452090,12.19159607,151.3,151.29,0.04274535]
[1749443453385,16.73156616,151.3,151.29,0.04274535]
[1749443453792,16.73156691,151.3,151.29,0.04274535]
[1749443453988,10.12546691,151.3,151.29,6.64924535]
[1749443454191,5.58549607,151.3,151.29,6.64924535]
[1749443458801,0.04466093,151.32,151.3,6.6059]
[1749443459000,10.24438909,151.31,151.3,6.6059]
[1749443460101,5.68882743,151.31,151.3,6.6059]
[1749443460296,10.24571504,151.31,151.3,6.6059]
[1749443461303,10.24613006,151.31,151.3,6.6059]
[1749443462002,5.68882743,151.31,151.3,6.6059]
[1749443462199,10.24839477,151.31,151.3,6.6059]
[1749443463502,10.25744133,151.31,151.3,6.6059]
[1749443465305,5.68882743,151.31,151.3,9.34933138]
[1749443465504,10.26073989,151.31,151.3,9.34933138]
[1749443466206,10.26111742,151.31,151.3,9.34933138]
[1749443466406,5.68882743,151.31,151.3,9.34933138]
[1749443466606,10.26111746,151.31,151.3,9.34933138]
[1749443466807,10.26111738,151.31,151.3,9.34933138]
[1749443467007,10.26066912,151.31,151.3,9.34933138]
[1749443467208,10.26066909,151.31,151.3,9.34933138]
[1749443468508,10.25688574,151.31,151.3,9.34933138]
[1749443470103,10.25814562,151.31,151.3,9.34933138]
[1749443470403,10.25926183,151.31,151.3,9.34933138]
[1749443471208,10.26002107,151.31,151.3,9.34933138]
[1749443471712,10.26002276,151.31,151.3,9.34933138]
[1749443472211,10.26002272,151.31,151.3,9.34933138]
[1749443473211,10.26305476,151.31,151.3,9.34933138]
[1749443473405,5.68882743,151.31,151.3,9.34933138]
[1749443474012,10.26305476,151.31,151.3,9.34933138]
[1749443474212,10.26305472,151.31,151.3,9.34933138]
[1749443474413,10.26305472,151.31,151.3,6.6059]
[1749443474609,10.26305472,151.31,151.3,9.34933138]
[1749443475110,10.2640131,151.31,151.3,9.34933138]
[1749443477012,10.27135751,151.31,151.3,9.34933138]
[1749443478115,10.27478625,151.31,151.3,9.34933138]
[1749443478315,5.68882743,151.31,151.3,9.34933138]
[1749443478516,10.27478629,151.31,151.3,9.34933138]
[1749443478714,5.68882743,151.31,151.3,9.34933138]
[1749443478914,10.27478796,151.31,151.3,9.34933138]
[1749443479117,10.274788,151.31,151.3,9.34933138]
[1749443479520,10.274788,151.31,151.3,44.20933138]
[1749443480215,10.27478809,151.31,151.3,44.20933138]
[1749443480409,10.27478639,151.31,151.3,44.20933138]
[1749443480824,10.27524769,151.31,151.3,44.20933138]
[1749443481224,16.43105729,151.31,151.3,44.20933138]
[1749443482022,11.84463703,151.31,151.3,44.20933138]
[1749443482222,16.43450336,151.31,151.3,44.20933138]
[1749443482525,16.47773887,151.31,151.3,44.20933138]
[1749443482926,11.88787254,151.31,151.3,44.20933138]
[1749443483125,16.47298119,151.31,151.3,44.20933138]
[1749443483626,16.47702612,151.31,151.3,44.20933138]
[1749443483928,11.88787254,151.31,151.3,44.20933138]
[1749443484225,16.47702612,151.31,151.3,44.20933138]
[1749443484921,10.29784607,151.31,151.3,44.20933138]
[1749443485323,0.04466093,151.32,151.31,6.6057]
[1749443485524,0.04466093,151.32,151.31,9.34913138]
[1749443488127,6.17918005,151.34,151.33,6.6048]
[1749443488323,6.17918005,151.35,151.33,2.74343138]
[1749443488524,6.17918005,151.36,151.34,37.60343138]
[1749443488728,6.17918005,151.36,151.35,9.34733138]
[1749443491534,6.22378355,151.37,151.35,9.34733138]
[1749443491734,6.22378355,151.37,151.36,2.74343138]
[1749443496232,6.22378355,151.37,151.34,41.51342558]
[1749443496439,6.17918005,151.36,151.34,37.65275696]
[1749443496732,6.22378355,151.37,151.34,37.65275696]
[1749443497336,10.20244444,151.36,151.34,44.25675696]
[1749443497536,10.20244444,151.35,151.34,44.25675696]
[1749443497733,10.2024403,151.35,151.34,44.25675696]
[1749443497927,5.6831493,151.35,151.34,44.25675696]
[1749443498435,10.20244025,151.35,151.34,44.25675696]
[1749443498632,10.20244439,151.35,151.34,44.25675696]
[1749443499039,10.20244439,151.35,151.34,34.90932558]
[1749443499237,22.98552444,151.35,151.34,0.04932558]
[1749443499940,22.98640522,151.35,151.34,0.04932558]
[1749443500436,18.46622935,151.35,151.34,0.04932558]
[1749443500633,22.98640781,151.35,151.34,0.04932558]
[1749443501541,22.986412,151.35,151.34,0.04932558]
[1749443502040,18.46622935,151.35,151.34,0.04932558]
[1749443502235,22.986412,151.35,151.34,0.04932558]
[1749443503039,22.97275809,151.35,151.34,0.04932558]
[1749443503543,18.46622935,151.35,151.34,0.04932558]
[1749443503741,22.97273224,151.35,151.34,0.04932558]
[1749443503936,22.97274082,151.35,151.34,0.04932558]
[1749443504242,11.11041147,151.35,151.34,0.04932558]
[1749443504441,22.9549693,151.35,151.34,0.04932558]
[1749443504640,22.95255113,151.35,151.34,0.04932558]
[1749443504834,11.1079933,151.35,151.34,0.04932558]
[1749443505443,6.6039,151.35,151.34,0.04932558]
[1749443505938,11.1079933,151.35,151.34,0.04932558]
[1749443506641,6.6039,151.35,151.34,0.04932558]
[1749443506841,11.10842372,151.35,151.34,0.04932558]
[1749443507347,22.94740172,151.35,151.34,0.04932558]
[1749443507545,22.94284267,151.35,151.34,0.04932558]
[1749443507843,22.94284485,151.35,151.34,0.04932558]
[1749443508344,18.442878,151.35,151.34,0.04932558]
[1749443508537,22.9402074,151.35,151.34,0.04932558]
[1749443509043,11.10122506,151.35,151.34,0.04932558]
[1749443509343,17.26740096,151.35,151.34,0.04932558]
[1749443509641,22.93994746,151.35,151.34,0.04932558]
[1749443509843,22.94051127,151.35,151.34,0.04932558]
[1749443510239,12.2764465,151.35,151.34,0.04932558]
[1749443510444,11.10178543,151.35,151.34,0.04932558]
[1749443510639,22.94092813,151.35,151.34,0.04932558]
[1749443510942,22.94092723,151.35,151.34,0.04932558]
[1749443512140,18.4430427,151.35,151.34,0.04932558]
[1749443512341,22.9413852,151.35,151.34,0.04932558]
[1749443512638,18.4430427,151.35,151.34,0.04932558]
[1749443512836,22.94180751,151.35,151.34,0.04932558]
[1749443513037,18.4430427,151.35,151.34,0.04932558]
[1749443513343,22.94180968,151.35,151.34,0.04932558]
[1749443513545,22.94181671,151.35,151.34,0.04932558]
[1749443514042,22.94182055,151.35,151.34,0.04932558]
[1749443515446,18.4430427,151.35,151.34,0.04932558]
[1749443515642,22.94202846,151.35,151.34,0.04932558]
[1749443515844,18.4430427,151.35,151.34,0.04932558]
[1749443516045,22.94202846,151.35,151.34,0.04932558]
[1749443516648,16.33812846,151.35,151.34,0.04932558]
[1749443517046,16.33860565,151.35,151.34,0.04932558]
[1749443517247,11.8391427,151.35,151.34,0.04932558]
[1749443517445,16.33861436,151.35,151.34,0.04932558]
[1749443517648,11.8391427,151.35,151.34,0.04932558]
[1749443518150,10.17222864,151.35,151.34,0.04932558]
[1749443518647,10.17234747,151.35,151.34,0.04932558]
[1749443518847,12.27666478,151.35,151.34,0.04932558]
[1749443519148,10.17234874,151.35,151.34,0.04932558]
[1749443519352,16.33872666,151.35,151.34,0.04932558]
[1749443519746,22.94262666,151.35,151.34,0.04932558]
[1749443520449,16.77624874,151.35,151.34,0.04932558]
[1749443520645,16.776895,151.35,151.34,0.04932558]
[1749443520950,19.52032638,151.35,151.34,0.04932558]
[1749443521952,6.6046,151.34,151.31,37.60343138]
[1749443522148,11.84458172,151.33,151.31,37.60343138]
[1749443522348,10.17421191,151.32,151.31,37.60343138]
[1749443522748,10.17876789,151.32,151.31,44.20913138]
[1749443522947,10.17875218,151.32,151.31,44.20913138]
[1749443523147,5.67276478,151.32,151.31,44.20913138]
[1749443527652,10.18698482,151.32,151.31,44.20913138]
[1749443527852,10.18698482,151.32,151.3,6.65212532]
[1749443528054,6.22258064,151.33,151.3,6.65212532]
[1749443528055,10.18701613,151.31,151.3,6.65212532]
[1749443528251,10.18701613,151.31,151.3,43.6555567]
[1749443528758,10.18703485,151.31,151.3,43.6555567]
[1749443528965,5.67276478,151.31,151.3,43.6555567]
[1749443529163,10.18704244,151.31,151.3,43.6555567]
[1749443529457,10.18704334,151.31,151.3,43.6555567]
[1749443529664,10.18704339,151.31,151.3,43.6555567]
[1749443530664,10.1857773,151.31,151.3,43.6555567]
[1749443530962,10.18577735,151.31,151.3,43.6555567]
[1749443531162,10.18577635,151.31,151.3,43.6555567]
[1749443531760,5.67276478,151.31,151.3,43.6555567]
[1749443533968,10.17223509,151.31,151.3,43.6555567]
[1749443534362,10.17225042,151.31,151.3,43.6555567]
[1749443534763,10.17273134,151.31,151.3,43.6555567]
[1749443534961,10.17273224,151.31,151.3,43.6555567]
[1749443535162,10.17273138,151.31,151.3,43.6555567]
[1749443535363,10.17273132,151.31,151.3,43.6555567]
[1749443535562,16.34454826,151.31,151.3,0.04622532]
[1749443535765,12.9161627,151.31,151.29,33.74]
[1749443535964,16.350855,151.3,151.29,33.74]
[1749443536366,16.35085998,151.3,151.29,33.74]
[1749443536568,11.8507976,151.3,151.29,33.74]
[1749443536761,16.35086897,151.3,151.29,33.74]
[1749443537271,11.8507976,151.3,151.29,33.74]
[1749443538069,22.94862828,151.3,151.29,33.74]
[1749443538371,22.94862729,151.3,151.29,33.74]
[1749443539472,18.4568976,151.3,151.29,33.74]
[1749443539667,16.3384821,151.3,151.28,6.607]
[1749443539867,10.16045825,151.29,151.28,6.607]
[1749443540267,10.16045825,151.29,151.27,6.6072]
[1749443540470,10.16045825,151.28,151.27,6.6072]
[1749443540970,5.67276478,151.28,151.27,6.6072]
[1749443541170,10.15859634,151.28,151.27,6.6072]
[1749443541471,5.67276478,151.28,151.27,6.6072]
[1749443541673,10.15859634,151.28,151.27,6.6072]
[1749443541870,10.15859856,151.28,151.27,6.6072]
[1749443542474,5.67276478,151.28,151.27,6.6072]
[1749443543670,5.67276478,151.28,151.26,40.3477]
[1749443543870,5.67276478,151.27,151.26,40.3477]
[1749443544576,5.67276478,151.27,151.26,33.74]
[1749443544771,16.74729585,151.27,151.26,33.74]
[1749443544975,5.67276478,151.27,151.26,33.74]
[1749443546677,10.13713821,151.27,151.26,33.74]
[1749443547174,16.31517103,151.27,151.24,33.74]
[1749443547371,10.13713821,151.26,151.24,33.74]
[1749443547573,5.67276478,151.25,151.24,33.74]
[1749443549376,12.28106478,151.25,151.24,33.74]
[1749443549568,16.72618131,151.25,151.24,33.74]
[1749443549773,12.28106478,151.25,151.24,33.74]
[1749443550175,10.1178814,151.25,151.24,33.74]